fUST/lending_fUST_20251127
["ID","MTS","AMOUNT","RATE_DAILY","PERIOD"]
[394980413,1764251529147,-500.0,5e-05,2]
[394980414,1764251529157,-500.0,5e-05,2]
[394980415,1764251529166,-500.0,5e-05,2]
[394980416,1764251529176,-500.0,5e-05,2]
[394980417,1764251529186,-500.0,5e-05,2]
[394980418,1764251529196,-500.0,5e-05,2]
[394980419,1764251529205,-500.0,5e-05,2]
[394980420,1764251529216,-500.0,5e-05,2]
[394980421,1764251529225,-500.0,5e-05,2]
[394980422,1764251529235,-500.0,5e-05,2]
[394980423,1764251529245,-501.9713371,5e-05,2]
[394980424,1764251529254,-500.0,5e-05,2]
[394980425,1764251529263,-500.0,5e-05,2]
[394980426,1764251529271,-500.0,5e-05,2]
[394980427,1764251529281,-500.0,5e-05,2]
[394980428,1764251529290,-500.0,5e-05,2]
[394980429,1764251529299,-500.0,5e-05,2]
[394980430,1764251529308,-166.66,5e-05,2]
[394980431,1764251529317,-720.0,5.062e-05,2]
[394980432,1764251529326,-587.0,5.217e-05,2]
[394980433,1764251529335,-453.0,5.217e-05,2]
[394980434,1764251529345,-166.66,5.274e-05,2]
[394980435,1764251529354,-3975.1418212,5.316e-05,2]
[394980436,1764251529363,-570.9012616,5.479e-05,2]
[394980437,1764251529372,-500.0,5.479e-05,2]
[394980438,1764251529380,-176.39677593,5.479e-05,2]
[394980439,1764251529389,-500.0,5.521e-05,2]
[394980440,1764251529399,-500.0,5.521e-05,2]
[394980441,1764251529408,-1000.0,5.521e-05,2]
[394980442,1764251529417,-166.68,5.548e-05,2]
[394980443,1764251529426,-864.0,5.569e-05,2]
[394980444,1764251529435,-540.0,5.739e-05,2]
[394980445,1764251529445,-3975.1418212,5.818e-05,2]
[394980446,1764251529454,-1000.0,6.125e-05,2]
[394980447,1764251529463,-454.20979034,6.313e-05,2]
[394980448,1764251529472,-1000.0,6.738e-05,2]
[394980449,1764251529481,-244.0,6.738e-05,2]
[394980450,1764251529491,-1679.6955617,6.849e-05,2]
[394980451,1764251529500,-298.10509791,6.943e-05,2]
[394980452,1764251529510,-243.83075183,7.142e-05,2]
[394980453,1764251529519,-8051.60219363,7.176e-05,2]
[394980454,1764251529529,-1000.0,7.412e-05,2]
[394980455,1764251529538,-492.0,7.412e-05,2]
[394980456,1764251529547,-220.05661965,7.525e-05,2]
[394980457,1764251529557,-821.10475926,7.624e-05,2]
[394980458,1764251529568,-990.0,7.711e-05,2]
[394980459,1764251529577,-630.0,7.711e-05,2]
[394980460,1764251529586,-150.244,7.711e-05,2]
[394980461,1764251529595,-1000.0,8.153e-05,2]
[394980462,1764251529605,-791.0,8.153e-05,2]
[394980463,1764251529614,-500.0,8.219e-05,2]
[394980464,1764251529623,-500.0,8.219e-05,2]
[394980465,1764251529632,-500.0,8.219e-05,2]
[394980466,1764251529641,-509.1896152,8.219e-05,2]
[394980467,1764251529651,-523.49602954,8.313e-05,2]
[394980468,1764251529660,-1000.0,8.968e-05,2]
[394980469,1764251529669,-1000.0,8.968e-05,2]
[394980470,1764251529679,-1000.0,9.865e-05,2]
[394980471,1764251529688,-1000.0,9.865e-05,2]
[394980472,1764251529698,-579.0,9.865e-05,2]
[394980473,1764251529707,-8051.60219363,9.982e-05,2]
[394980474,1764251529720,-209.40437684,0.0001,2]
[394980475,1764251529730,-592.78226874,0.00010313,2]
[394980476,1764251529741,-250.0,0.00010411,2]
[394980477,1764251529761,-217.15233878,0.00010548,2]
[394980478,1764251529775,-990.0,0.00010711,2]
[394980479,1764251529785,-630.0,0.00010711,2]
[394980480,1764251529795,-1000.0,0.00010852,2]
[394980481,1764251529804,-1000.0,0.00010852,2]
[394980482,1764251529814,-1000.0,0.00010852,2]
[394980483,1764251529824,-1380.04,0.00010958,2]
[394980484,1764251529833,-1380.04,0.00010958,2]
[394980485,1764251529842,-1380.04,0.00010958,2]
[394980486,1764251529852,-1380.04,0.00010958,2]
[394980487,1764251529860,-1380.04,0.00010958,2]
[394980488,1764251529869,-1380.04,0.00010958,2]
[394980489,1764251529878,-1380.04,0.00010958,2]
[394980490,1764251529888,-1380.04,0.00010958,2]
[394980491,1764251529898,-1380.04,0.00010958,2]
[394980492,1764251529907,-1380.04,0.00010958,2]
[394980493,1764251529916,-1380.04,0.00010958,2]
[394980494,1764251529925,-1380.04,0.00010958,2]
[394980495,1764251529934,-1380.04,0.00010958,2]
[394980496,1764251529944,-1380.04,0.00010958,2]
[394980497,1764251529953,-1380.04,0.00010958,2]
[394980498,1764251529963,-1380.04,0.00010958,2]
[394980499,1764251529973,-1380.04,0.00010958,2]
[394980500,1764251529982,-1380.04,0.00010958,2]
[394980501,1764251529992,-1380.04,0.00010958,2]
[394980502,1764251530002,-1380.04,0.00010958,2]
[394980503,1764251530012,-1380.04,0.00010958,2]
[394980504,1764251530023,-1380.04,0.00010958,2]
[394980505,1764251530033,-1380.04,0.00010958,2]
[394980506,1764251530043,-1380.21014633,0.00010958,2]
[394980507,1764251530055,-500.0,0.00010959,2]
[394980508,1764251530065,-500.0,0.00010959,2]
[394980509,1764251530075,-500.0,0.00010959,2]
[394980510,1764251530198,-500.0,0.00010959,2]
[394980511,1764251530208,-500.0,0.00010959,2]
[394980512,1764251530217,-500.0,0.00010959,2]
[394980513,1764251530226,-500.0,0.00010959,2]
[394980514,1764251530235,-500.0,0.00010959,2]
[394980515,1764251530244,-500.0,0.00010959,2]
[394980516,1764251530253,-500.0,0.00010959,2]
[394980517,1764251530262,-500.0,0.00010959,2]
[394980518,1764251530271,-500.0,0.00010959,2]
[394980519,1764251530280,-500.0,0.00010959,2]
[394980520,1764251530289,-423.91901986,0.00010959,2]
[394980521,1764251530298,-500.0,0.00010959,2]
[394980522,1764251530307,-452.57366633,0.00010973,2]
[394980523,1764251530316,-503.4114239,0.00010973,2]
[394980524,1764251530327,-500.0,0.00010973,2]
[394980525,1764251530337,-300.0,0.00010973,2]
[394980526,1764251530346,-151.0,0.00011,2]
[394980527,1764251530355,-151.0,0.00011,2]
[394980528,1764251530365,-1000.0,0.00011,2]
[394980529,1764251530374,-225.18697532,0.00011096,2]
[394980530,1764251530383,-500.0,0.00011521,2]
[394980531,1764251530392,-600.0,0.00011521,2]
[394980532,1764251530402,-233.51889341,0.00011644,2]
[394980533,1764251530411,-151.0,0.000119,2]
[394980534,1764251530419,-151.0,0.000119,2]
[394980535,1764251530428,-151.0,0.000119,2]
[394980536,1764251530437,-1000.0,0.00011937,2]
[394980537,1764251530446,-1000.0,0.00011937,2]
[394980538,1764251530455,-1000.0,0.00011937,2]
[394980539,1764251530463,-715.0,0.00011937,2]
[394980540,1764251530472,-900.0,0.00012068,2]
[394980541,1764251530481,-242.15909246,0.00012192,2]
[394980542,1764251530491,-5059.27858282,0.00012207,2]
[394980543,1764251530500,-662.06850795,0.00012313,2]
[394980544,1764251530509,-298.10509791,0.00012646,2]
[394980545,1764251530518,-8051.60219363,0.00012689,2]
[394980546,1764251530527,-384.557,0.0001274,2]
[394980547,1764251530536,-251.11897888,0.0001274,2]
[394980548,1764251530545,-151.0,0.000128,2]
[394980549,1764251530555,-151.0,0.000128,2]
[394980550,1764251530563,-151.0,0.000128,2]
[394980551,1764251530572,-1000.0,0.0001313,2]
[394980552,1764251530581,-1000.0,0.0001313,2]
[394980553,1764251530590,-1000.0,0.0001313,2]
[394980554,1764251530599,-821.10475926,0.00013156,2]
[394980555,1764251530609,-353.54508592,0.00013179,2]
[394980556,1764251530618,-160.0,0.00013179,2]
[394980557,1764251530627,-185.038,0.000132,2]
[394980558,1764251530641,-260.4103811,0.00013288,2]
[394980559,1764251530651,-150.0,0.00013309,2]
[394980560,1764251530661,-500.0,0.00013434,2]
[394980561,1764251530670,-858.647064,0.00013698,2]
[394980562,1764251530679,-859.08412116,0.00013699,2]
[394980563,1764251530688,-750.0,0.00013699,2]
[394980564,1764251530697,-1000.0,0.00013699,2]
[394980565,1764251530707,-500.0,0.00013699,2]
[394980566,1764251530715,-500.0,0.00013699,2]
[394980567,1764251530725,-500.0,0.00013699,2]
[394980568,1764251530734,-500.0,0.00013699,2]
[394980569,1764251530743,-500.0,0.00013699,2]
[394980570,1764251530755,-563.41021445,0.00013699,2]
[394980571,1764251530764,-500.0,0.00013699,2]
[394980572,1764251530774,-500.0,0.00013699,2]
[394980573,1764251530783,-159.09461134,0.00013699,2]
[394980574,1764251530792,-500.0,0.00013699,2]
[394980575,1764251530802,-500.0,0.00013699,2]
[394980576,1764251530811,-500.0,0.00013699,2]
[394980577,1764251530820,-500.0,0.00013699,2]
[394980578,1764251530831,-159.17487345,0.00013699,2]
[394980579,1764251530840,-500.0,0.00013699,2]
[394980580,1764251530849,-500.0,0.00013699,2]
[394980581,1764251530858,-500.0,0.00013699,2]
[394980582,1764251530867,-302.81565283,0.00013699,2]
[394980583,1764251530877,-500.0,0.00013699,2]
[394980584,1764251530886,-500.0,0.00013699,2]
[394980585,1764251530895,-345.16402835,0.00013699,2]
[394980586,1764251530904,-500.0,0.00013699,2]
[394980587,1764251530913,-500.0,0.00013699,2]
[394980588,1764251530922,-500.0,0.00013699,2]
[394980589,1764251530931,-500.0,0.00013699,2]
[394980590,1764251530939,-600.14372742,0.00013699,2]
[394980591,1764251530948,-500.0,0.00013699,2]
[394980592,1764251530957,-500.0,0.00013699,2]
[394980593,1764251530966,-500.0,0.00013699,2]
[394980594,1764251530975,-500.0,0.00013699,2]
[394980595,1764251530984,-500.0,0.00013699,2]
[394980596,1764251530993,-500.0,0.00013699,2]
[394980597,1764251531002,-500.0,0.00013699,2]
[394980598,1764251531011,-500.0,0.00013699,2]
[394980599,1764251531020,-158.24153693,0.00013699,2]
[394980600,1764251531029,-500.0,0.00013699,2]
[394980601,1764251531039,-500.0,0.00013699,2]
[394980602,1764251531048,-500.0,0.00013699,2]
[394980603,1764251531057,-500.0,0.00013699,2]
[394980604,1764251531066,-500.0,0.00013699,2]
[394980605,1764251531075,-500.0,0.00013699,2]
[394980606,1764251531084,-500.0,0.00013699,2]
[394980607,1764251531092,-159.57677115,0.00013699,2]
[394980608,1764251531101,-431.59009119,0.00013699,2]
[394980609,1764251531110,-500.0,0.00013699,2]
[394980610,1764251531119,-500.0,0.00013699,2]
[394980611,1764251531128,-234.66628509,0.00013699,2]
[394980612,1764251531138,-500.0,0.00013699,2]
[394980613,1764251531147,-634.38039639,0.00013699,2]
[394980614,1764251531156,-157.70598517,0.00013699,2]
[394980615,1764251531166,-500.0,0.00013699,2]
[394980616,1764251531175,-500.0,0.00013699,2]
[394980617,1764251531184,-158.85638959,0.00013699,2]
[394980618,1764251531194,-500.0,0.00013699,2]
[394980619,1764251531203,-500.0,0.00013699,2]
[394980620,1764251531212,-500.0,0.00013699,2]
[394980621,1764251531221,-500.0,0.00013699,2]
[394980622,1764251531230,-500.0,0.00013699,2]
[394980623,1764251531239,-415.26875451,0.00013699,2]
[394980624,1764251531248,-500.0,0.00013699,2]
[394980625,1764251531257,-214.70179051,0.00013699,2]
[394980626,1764251531267,-500.0,0.00013699,2]
[394980627,1764251531276,-421.80482261,0.00013699,2]
[394980628,1764251531285,-500.0,0.00013699,2]
[394980629,1764251531294,-158.24455387,0.00013699,2]
[394980630,1764251531303,-500.0,0.00013699,2]
[394980631,1764251531312,-158.04464361,0.00013699,2]
[394980632,1764251531321,-500.0,0.00013699,2]
[394980633,1764251531330,-500.0,0.00013699,2]
[394980634,1764251531339,-500.0,0.00013699,2]
[394980635,1764251531349,-500.0,0.00013699,2]
[394980636,1764251531358,-500.0,0.00013699,2]
[394980637,1764251531368,-172.74000344,0.00013699,2]
[394980638,1764251531377,-500.0,0.00013699,2]
[394980639,1764251531386,-522.99131387,0.00013699,2]
[394980640,1764251531396,-500.0,0.00013699,2]
[394980641,1764251531405,-157.53512662,0.00013699,2]
[394980642,1764251531413,-500.0,0.00013699,2]
[394980643,1764251531423,-500.0,0.00013699,2]
[394980644,1764251531432,-500.0,0.00013699,2]
[394980645,1764251531441,-500.0,0.00013699,2]
[394980646,1764251531450,-500.0,0.00013699,2]
[394980647,1764251531459,-500.0,0.00013699,2]
[394980648,1764251531469,-500.0,0.00013699,2]
[394980649,1764251531478,-500.0,0.00013699,2]
[394980650,1764251531488,-500.0,0.00013699,2]
[394980651,1764251531497,-500.0,0.00013699,2]
[394980652,1764251531507,-306.45237372,0.00013699,2]
[394980653,1764251531516,-180.92257696,0.00013699,2]
[394980654,1764251531525,-151.0,0.00013699,2]
[394980655,1764251531535,-500.0,0.00013699,2]
[394980656,1764251531545,-151.0,0.00013699,2]
[394980657,1764251531555,-151.0,0.00013699,2]
[394980658,1764251531564,-500.0,0.00013699,2]
[394980659,1764251531574,-151.0,0.00013699,2]
[394980660,1764251531583,-160.0,0.00013699,2]
[394980661,1764251531592,-1000.0,0.00013699,2]
[394980662,1764251531602,-1000.0,0.00013699,2]
[394980663,1764251531612,-1000.0,0.00013699,2]
[394980664,1764251531622,-350.6061,0.00013699,2]
[394980665,1764251531631,-151.0,0.00013699,2]
[394980666,1764251531640,-151.0,0.00013699,2]
[394980667,1764251531649,-151.0,0.00013699,2]
[394980668,1764251531659,-151.0,0.00013699,2]
[394980669,1764251531668,-151.0,0.000137,2]
[394980670,1764251531678,-151.0,0.000137,2]
[394980671,1764251531688,-151.0,0.000137,2]
[394980672,1764251531697,-151.0,0.00013836,2]
[394980673,1764251531707,-500.0,0.00013836,2]
[394980674,1764251531717,-151.0,0.00013836,2]
[394980675,1764251531727,-151.0,0.00013836,2]
[394980676,1764251531736,-500.0,0.00013836,2]
[394980677,1764251531748,-151.0,0.00013836,2]
[394980678,1764251531760,-155.03199494,0.00013836,2]
[394980679,1764251531770,-270.0455652,0.00013836,2]
[394980680,1764251531780,-159.0,0.000139,2]
[394980681,1764251531790,-159.0,0.000139,2]
[394980682,1764251531799,-159.0,0.000139,2]
[394980683,1764251531809,-159.0,0.000139,2]
[394980684,1764251531818,-159.0,0.000139,2]
[394980685,1764251531830,-150.0,0.00013943,2]
[394980686,1764251531839,-500.0,0.00013973,2]
[394980687,1764251531849,-151.0,0.00013973,2]
[394980688,1764251531859,-500.0,0.00013973,2]
[394980689,1764251531868,-151.0,0.00013973,2]
[394980690,1764251531878,-151.0,0.00013973,2]
[394980691,1764251531887,-500.0,0.00013973,2]
[394980692,1764251531897,-151.0,0.00013973,2]
[394980693,1764251531906,-285.51809138,0.0001411,2]
[394980694,1764251531915,-503.3858294,0.0001411,2]
[394980695,1764251531924,-151.0,0.0001411,2]
[394980696,1764251531934,-200.23495555,0.0001411,2]
[394980697,1764251531943,-500.0,0.0001411,2]
[394980698,1764251531952,-199.9198709,0.0001411,2]
[394980699,1764251531961,-200.65638726,0.00014246,2]
[394980700,1764251531971,-200.0,0.00014246,2]
[394980701,1764251531981,-500.0,0.00014247,2]
[394980702,1764251531990,-233.10712327,0.00014247,2]
[394980703,1764251531999,-1000.0,0.00014247,2]
[394980704,1764251532009,-1000.0,0.00014247,2]
[394980705,1764251532018,-1000.0,0.00014247,2]
[394980706,1764251532027,-1000.0,0.00014247,2]
[394980707,1764251532037,-1000.0,0.00014247,2]
[394980708,1764251532046,-1000.0,0.00014247,2]
[394980709,1764251532056,-429.56115476,0.00014247,2]
[394980710,1764251532065,-375.81874348,0.00014247,2]
[394980711,1764251532075,-1000.0,0.00014247,2]
[394980712,1764251532084,-1000.0,0.00014247,2]
[394980713,1764251532094,-684.43287694,0.00014247,2]
[394980714,1764251532104,-183.69248087,0.00014247,2]
[394980715,1764251532114,-1000.0,0.00014247,2]
[394980716,1764251532123,-1000.0,0.00014247,2]
[394980717,1764251532133,-200.89682503,0.00014247,2]
[394980718,1764251532142,-746.63009114,0.00014247,2]
[394980719,1764251532152,-1000.0,0.00014247,2]
[394980720,1764251532162,-1000.0,0.00014247,2]
[394980721,1764251532171,-1000.0,0.00014247,2]
[394980722,1764251532181,-906.65537711,0.00014247,2]
[394980723,1764251532191,-1000.0,0.00014247,2]
[394980724,1764251532201,-1000.0,0.00014247,2]
[394980725,1764251532210,-1000.0,0.00014247,2]
[394980726,1764251532220,-1000.0,0.00014247,2]
[394980727,1764251532229,-1000.0,0.00014247,2]
[394980728,1764251532239,-547.59259537,0.00014247,2]
[394980729,1764251532248,-1000.0,0.00014247,2]
[394980730,1764251532258,-1000.0,0.00014247,2]
[394980731,1764251532267,-1000.0,0.00014247,2]
[394980732,1764251532277,-249.10010188,0.00014247,2]
[394980733,1764251532286,-1000.0,0.00014247,2]
[394980734,1764251532296,-1000.0,0.00014247,2]
[394980735,1764251532305,-1000.0,0.00014247,2]
[394980736,1764251532315,-1000.0,0.00014247,2]
[394980737,1764251532324,-1000.0,0.00014247,2]
[394980738,1764251532334,-707.32400735,0.00014247,2]
[394980739,1764251532344,-1000.0,0.00014247,2]
[394980740,1764251532353,-1000.0,0.00014247,2]
[394980741,1764251532363,-1000.0,0.00014247,2]
[394980742,1764251532372,-1000.0,0.00014247,2]
[394980743,1764251532382,-1000.0,0.00014247,2]
[394980744,1764251532391,-1000.0,0.00014247,2]
[394980745,1764251532400,-1000.0,0.00014247,2]
[394980746,1764251532409,-322.32278692,0.00014247,2]
[394980747,1764251532419,-500.93355446,0.00014247,2]
[394980748,1764251532429,-1000.0,0.00014247,2]
[394980749,1764251532438,-1000.0,0.00014247,2]
[394980750,1764251532450,-995.22760176,0.00014247,2]
[394980751,1764251532459,-1000.0,0.00014247,2]
[394980752,1764251532468,-522.36037335,0.00014247,2]
[394980753,1764251532478,-1000.0,0.00014247,2]
[394980754,1764251532487,-1000.0,0.00014247,2]
[394980755,1764251532497,-1000.0,0.00014247,2]
[394980756,1764251532507,-1000.0,0.00014247,2]
[394980757,1764251532517,-1000.0,0.00014247,2]
[394980758,1764251532526,-1000.0,0.00014247,2]
[394980759,1764251532535,-1000.0,0.00014247,2]
[394980760,1764251532545,-306.58108214,0.00014247,2]
[394980761,1764251532554,-1000.0,0.00014247,2]
[394980762,1764251532564,-675.15655101,0.00014247,2]
[394980763,1764251532574,-1000.0,0.00014247,2]
[394980764,1764251532584,-1000.0,0.00014247,2]
[394980765,1764251532594,-837.79120147,0.00014247,2]
[394980766,1764251532603,-536.76104934,0.00014247,2]
[394980767,1764251532614,-229.93025523,0.00014247,2]
[394980768,1764251532623,-500.0,0.00014247,2]
[394980769,1764251532633,-151.0,0.00014247,2]
[394980770,1764251532642,-260.0,0.00014247,2]
[394980771,1764251532652,-731.35474715,0.00014313,2]
[394980772,1764251532662,-500.0,0.00014384,2]
[394980773,1764251532671,-280.03725112,0.00014384,2]
[394980774,1764251532681,-500.0,0.00014517,2]
[394980775,1764251532690,-500.0,0.00014521,2]
[394980776,1764251532700,-627.33337515,0.00014521,2]
[394980777,1764251532710,-150.0,0.00014576,2]
[394980778,1764251532719,-151.0,0.000146,2]
[394980779,1764251532729,-151.0,0.000146,2]
[394980780,1764251532740,-151.0,0.000146,2]
[394980781,1764251532753,-200.0,0.00014794,2]
[394980782,1764251532763,-500.0,0.00014795,2]
[394980783,1764251532773,-204.89265343,0.00014795,2]
[394980784,1764251532782,-1020.32551189,0.00014795,2]
[394980785,1764251532793,-950.55497506,0.00014795,2]
[394980786,1764251532803,-518.69954095,0.00014795,2]
[394980787,1764251532813,-932.43023823,0.00014795,2]
[394980788,1764251532825,-166.44634921,0.00014795,2]
[394980789,1764251532835,-1068.24549811,0.00014795,2]
[394980790,1764251532845,-600.16769461,0.00014795,2]
[394980791,1764251532854,-751.12484151,0.00014795,2]
[394980792,1764251532864,-542.65021385,0.00014795,2]
[394980793,1764251532873,-700.83579362,0.00014795,2]
[394980794,1764251532882,-532.89389013,0.00014795,2]
[394980795,1764251532892,-958.15829195,0.00014795,2]
[394980796,1764251532901,-398.33408533,0.00014795,2]
[394980797,1764251532911,-909.13124072,0.00014795,2]
[394980798,1764251532920,-168.95733596,0.00014795,2]
[394980799,1764251532929,-489.95051351,0.00014795,2]
[394980800,1764251532939,-918.75986583,0.00014795,2]
[394980801,1764251532949,-1500.0,0.00014795,2]
[394980802,1764251532958,-1500.0,0.00014795,2]
[394980803,1764251532968,-1500.0,0.00014795,2]
[394980804,1764251532977,-360.0,0.00014795,2]
[394980805,1764251532986,-200.0,0.00014899,2]
[394980806,1764251532995,-290.39862941,0.00014932,2]
[394980807,1764251533005,-1000.0,0.00015,15]
[394980808,1764251533014,-500.0,0.00015016,2]
[394980809,1764251533024,-151.0,0.00015068,2]
[394980810,1764251533033,-500.0,0.00015068,2]
[394980811,1764251533042,-243.253304,0.00015068,2]
[394980812,1764251533052,-269.586166,0.00015068,2]
[394980813,1764251533061,-269.586166,0.00015068,2]
[394980814,1764251533071,-269.586166,0.00015068,2]
[394980815,1764251533080,-269.586166,0.00015068,2]
[394980816,1764251533091,-800.0,0.00015068,2]
[394980817,1764251533101,-800.0,0.00015194,2]
[394980818,1764251533111,-150.0,0.0001521,2]
[394980819,1764251533120,-500.0,0.00015264,2]
[394980820,1764251533130,-500.0,0.00015279,2]
[394980821,1764251533140,-460.0,0.00015342,2]
[394980822,1764251533151,-500.0,0.00015342,2]
[394980823,1764251533161,-2000.0,0.00015342,2]
[394980824,1764251533172,-2000.0,0.00015342,2]
[394980825,1764251533182,-2000.0,0.00015342,2]
[394980826,1764251533193,-151.0,0.000154,2]
[394980827,1764251533204,-718.05138,0.000154,2]
[394980828,1764251533214,-718.05138,0.000154,2]
[394980829,1764251533225,-718.05138,0.000154,2]
[394980830,1764251533235,-718.05138,0.000154,2]
[394980831,1764251533246,-500.0,0.00015453,2]
[394980832,1764251533255,-500.0,0.00015459,2]
[394980833,1764251533265,-301.1433787,0.0001548,2]
[394980834,1764251533275,-8051.60219363,0.00015495,2]
[394980835,1764251533285,-151.0,0.000155,2]
[394980836,1764251533296,-151.0,0.000155,2]
[394980837,1764251533306,-151.0,0.000155,2]
[394980838,1764251533316,-500.0,0.00015538,2]
[394980839,1764251533326,-500.0,0.00015616,2]
[394980840,1764251533336,-500.0,0.00015711,2]
[394980841,1764251533346,-150.0,0.00015758,2]
[394980842,1764251533356,-500.0,0.0001582,2]
[394980843,1764251533368,-560.0,0.0001589,2]
[394980844,1764251533378,-500.0,0.0001589,2]
[394980845,1764251533388,-2500.0,0.0001589,2]
[394980846,1764251533398,-2500.0,0.0001589,2]
[394980847,1764251533408,-2500.0,0.0001589,2]
[394980848,1764251533418,-151.0,0.000159,2]
[394980849,1764251533428,-163.0,0.000159,3]
[394980850,1764251533437,-165.0,0.000159,3]
[394980851,1764251533447,-500.0,0.00015935,2]
[394980852,1764251533457,-158.93650012,0.00016061,2]
[394980853,1764251533466,-800.0,0.00016077,2]
[394980854,1764251533475,-800.0,0.00016082,2]
[394980855,1764251533485,-500.0,0.00016089,2]
[394980856,1764251533494,-800.0,0.00016096,2]
[394980857,1764251533504,-800.0,0.00016109,2]
[394980858,1764251533514,-800.0,0.00016113,2]
[394980859,1764251533523,-800.0,0.00016116,2]
[394980860,1764251533532,-800.0,0.00016136,2]
[394980861,1764251533542,-800.0,0.0001615,2]
[394980862,1764251533552,-800.0,0.00016161,2]
[394980863,1764251533562,-500.0,0.00016164,2]
[394980864,1764251533571,-263.86255848,0.00016164,2]
[394980865,1764251533581,-800.0,0.0001617,2]
[394980866,1764251533591,-800.0,0.00016175,2]
[394980867,1764251533600,-800.0,0.00016186,2]
[394980868,1764251533611,-800.0,0.00016187,2]
[394980869,1764251533620,-800.0,0.00016206,2]
[394980870,1764251533631,-800.0,0.00016231,2]
[394980871,1764251533640,-800.0,0.00016235,2]
[394980872,1764251533650,-800.0,0.00016246,2]
[394980873,1764251533659,-800.0,0.0001625,2]
[394980874,1764251533669,-800.0,0.00016254,2]
[394980875,1764251533679,-800.0,0.00016257,2]
[394980876,1764251533688,-800.0,0.0001626,2]
[394980877,1764251533698,-800.0,0.0001627,2]
[394980878,1764251533708,-800.0,0.00016275,2]
[394980879,1764251533717,-800.0,0.00016282,2]
[394980880,1764251533727,-800.0,0.00016284,2]
[394980881,1764251533736,-800.0,0.00016291,2]
[394980882,1764251533746,-800.0,0.00016293,2]
[394980883,1764251533761,-800.0,0.00016295,2]
[394980884,1764251533770,-800.0,0.00016306,2]
[394980885,1764251533780,-190.0,0.00016307,2]
[394980886,1764251533789,-500.0,0.00016307,2]
[394980887,1764251533799,-800.0,0.00016308,2]
[394980888,1764251533809,-800.64098636,0.00016313,2]
[394980889,1764251533818,-800.0,0.00016314,2]
[394980890,1764251533829,-800.0,0.00016321,2]
[394980891,1764251533839,-800.0,0.00016338,2]
[394980892,1764251533852,-800.0,0.0001634,2]
[394980893,1764251533862,-800.0,0.00016343,2]
[394980894,1764251533871,-800.0,0.0001635,2]
[394980895,1764251533881,-151.0,0.000164,2]
[394980896,1764251533890,-151.0,0.000164,2]
[394980897,1764251533899,-151.0,0.000164,2]
[394980898,1764251533909,-800.0,0.00016411,2]
[394980899,1764251533919,-200.0,0.00016437,2]
[394980900,1764251533929,-333.0,0.00016438,2]
[394980901,1764251533939,-333.0,0.00016438,2]
[394980902,1764251533948,-333.0,0.00016438,2]
[394980903,1764251533957,-333.0,0.00016438,2]
[394980904,1764251533966,-333.0,0.00016438,2]
[394980905,1764251533976,-333.0,0.00016438,2]
[394980906,1764251533986,-333.0,0.00016438,2]
[394980907,1764251533995,-333.0,0.00016438,2]
[394980908,1764251534005,-333.0,0.00016438,2]
[394980909,1764251534014,-333.0,0.00016438,2]
[394980910,1764251534023,-333.0,0.00016438,2]
[394980911,1764251534033,-333.0,0.00016438,2]
[394980912,1764251534042,-660.0,0.00016438,2]